Workbook

Sheet Sheet1
A1: 2025年“F”项目土石方、挡墙、箱涵、管涵劳务招采清单及报价表
A2: 序号 | B2: 项目名称 | C2: 项目特征 | D2: 单位 | E2: 暂定工程量 | F2: 金额（元） | H2: 金额（元）
F3: 全费用单价限价 | G3: 合价 | H3: 班组所报单价 | I3: 合价 | J3: 备注
A4: 一、土石方工程
A5: 1 | B5: 清表（填方区域） | C5: 1.现状的乔灌木、地被植物和地表其他内容的清理、杂树砍伐。 2.土石类别：综合 3.开挖方式：由承包人自行考虑，包含在投标报价中。 4.场内转运方式及运距：由承包人自行考虑，包含在投标报价中。 5.弃土外运相关费用约定：发包人不指定弃土场，由承包人自行踏勘现场、自主选定合规弃土场、确定运输路线与运距；弃土外运的运输、装卸、弃土场租赁 / 征用、合规手续办理、环保防护、水土保持等全部相关费用，均已包含在弃土外运项目综合单价中，发包人不另行计量与支付。承包人须确保弃土作业全程合规，若因弃土行为产生任何行政处罚、第三方索赔及相关风险责任，均由承包人全额承担，合同价款不作任何调整。 6.其他：满足设计及现行技术、质量验收规范要求。所有设计中包含的相关工作内容及其余未尽事宜，由承包人自行考虑，包含在投标报价中。 7.工程量计算规则：仅计算单独填方区域面积，挖方区域清表费用已纳入“场内土石方挖运填”及“土石方开挖、外弃”中。 | D5: m2 | E5: 25440.00 | F5: 2.00 | G5: =F5*E5 -> 50880.00
A6: 2 | B6: 场内土石方挖、运、填 | C6: 1.承包工作范围：完成本项目场平、管沟、基坑、桥梁土石围堰等全部土石方开挖、转运、回填工程，包含但不限于：土石方开挖、石方破碎、场内转运、分层回填、碾压夯实；红线范围内取土回填转运、施工区域换填、桥梁作业区土石方回填、箱涵基础填方及锥坡回填；地表乔灌木、杂树、地被植物、建（废）渣等清理、砍伐与合规外弃；开挖土石类别综合地勘资料考虑，所有工序相关费用均包含在综合单价中。 2.填方来源约定：本工程填方土源为项目红线内原有土石方，场内运距综合考虑（新建道路总长约 6km），相关费用已计入综合单价，发包人不另行计量支付。 3.开挖与回填技术要求：挖填标高均需满足设计要求，误差控制在设计标高 ±5cm 内；开挖及场内运输方式由承包人自行确定；开挖方案、边坡施工防护、周边管线 / 构筑物 / 建筑物保护措施须经业主审批，施工须满足安全文明施工相关规范及规定，相关费用已包含在投标报价中。 4.路基、涵洞技术参数与检测要求： ①车行道及人车合行道：分层填筑厚度≤300mm，0-800mm 路基深度压实系数≥0.95，800-1500mm 深度≥0.94，1500mm 以上深度≥0.90，土基回弹模量≥40MPa； ②游步道：分层填筑厚度≤300mm，土基回弹模量≥30MPa； ③独立人行道：分层填筑厚度≤300mm，压实度≥0.93，路基验收弯沉值≤300（0.01mm）； ④涵洞地基承载力要求：按结构设计规范执行，涵洞顶覆土深度 h≤70cm 时，地基承载力≥250kPa；覆土深度 0.7~2.0m 时，≥200kPa；覆土深度 2.0~4.0m 时，≥250kPa；覆土深度 4.0~6.0m 时，≥300kPa；覆土深度≥6.0m 时，≥350kPa； ⑤以上所有工程内容的检测、复检、送样检测费用，均由承包人全额承担。 5.其他费用与责任约定：临边及孔洞防护、进出车辆冲洗、场内外路面保洁、作业人员劳保防护用品、临时用水用电（含水电费用）、安全文明施工措施等全部相关费用，均由承包人承担并计入投标报价；因现场超挖、欠挖造成的全部损失，由承包人全额承担；施工机械进出场（含多次进出场）费用已综合计入报价，发包人不另行支付。 6.履约与调价约定：施工全过程须满足城管、环保相关规范要求；为保障施工工期、满足环保要求产生的夜间施工措施费、赶工费等全部费用，均已包含在综合单价中，合同履约过程中不接受任何调价申请。 7.工程量计量规则：按测绘回填工程量结合现场收方数据，以立方米（m³）为单位计算 | D6: m3 | E6: 108924.75 | F6: 18.00 | G6: =F6*E6 -> 1960645.50
A8: 3 | B8: 土石方开挖、外弃（含弃土场费） | C8: 1.承包工作范围：完成本项目场平、管沟、基坑、桥梁土石围堰等全部土石方开挖及外弃工程，包含但不限于：土石方开挖、石方破碎、场内转运、装卸外运；地表乔灌木、杂树、地被、建（废）渣、淤泥等清理、砍伐与合规外弃；相关费用均包含在综合单价中。 2.弃土外运权责：发包人不指定弃土场，由承包人自行踏勘现场、选定合规弃土场、确定运输路线与运距；弃土外运涉及的运输、装卸、弃土场租赁 / 征用、合规手续办理、环保水保、防护等全部费用，均包含在综合单价内，发包人不另行支付。承包人承担弃土全流程合规责任，因违规产生的行政处罚、第三方索赔及全部风险损失，均由承包人全额承担，合同价款不作调整。 3.开挖技术要求：开挖标高需满足设计要求，误差控制在 ±5cm 内；开挖及场内运输方式由承包人自行确定；开挖方案、边坡防护、周边管线、构筑物、建筑物保护措施须经业主审批，相关费用已包含在投标报价中，施工须满足安全文明施工规范要求。 4.路基与检测要求： 车行道及人车合行道：分层填筑厚度≤300mm，0-800mm 路基压实系数≥0.95，800-1500mm≥0.94，1500mm 以上≥0.90，土基回弹模量≥40MPa； 游步道 / 独立人行道：分层填筑厚度≤300mm，压实度≥0.93，土基回弹模量≥30MPa，路基验收弯沉值≤300（0.01mm）； 5.以上所有路基检测、复检、送样检测费用，均由承包人承担。 6.其他费用与责任：临边及孔洞防护、进出车辆冲洗、场内外路面保洁、作业人员劳保防护、临时用水用电（含水电费）、安全文明施工措施等全部相关费用，均由承包人承担并计入报价；因超挖、欠挖造成的全部损失由承包人承担；施 7.工机械进出场（含多次进出场）费用已综合计入报价。 8.履约与调价约定：施工全过程须满足城管、环保相关规范要求；为保障工期、环保要求产生的夜间施工费、赶工措施费等全部费用，均已包含在综合单价中，履约过程中不接受任何调价申请。 9.工程量计量规则：按测绘开挖方量减去回填方量，以立方米（m³）为单位计算。 | D8: m3 | E8: 71211.25 | F8: 25.00 | G8: =F8*E8 -> 1780281.25
A9: 二、特殊路基处理
A10: 4 | B10: 外购片石回填 | C10: 1.片石来源：场外外购 2.强度要求：不低于MU30 3.回填要求：利用片石换填,挖软基前设置临时排水沟,将软弱地基全部挖除后,待地基承载力达到150Kpa以上。开挖后要压实,再换填;如若软霸地基深度大于2.5米,根据现场情况进行抛石填淤处理:片石饱和抗压强度不能小于30Mpa，需分层碾压密实,最大分层厚度不能大于50cm。页岩、泥岩、易风化岩、遇水易容岩石不能用于换填；换填材料必须满足规范要求。 4.场内外二次及多次转运由承包人综合考虑 5.工程量以现场收方为准 6.压实度要求：压实系数不小于0.95 7.做法：满足设计及现行施工技术、质量验收规范要求 | D10: m3 | E10: 1533.23 | F10: 145.00 | G10: =F10*E10 -> 222318.35
A11: 5 | B11: 旧路面破除砼块换填 | C11: 1.旧路面破除砼块换填 2.包含内容：切缝、破碎、挖、转运、回填、压实等 3.拆除厚度及方式：由与承包人综合考虑 4.运输方式、运距:综合考虑 5.切缝：切缝深度满足拆除混凝土道路要求，费用综合考虑在投标报价中 6.工程量计算规则：以现场实际收方为准 7.做法：满足设计及现行施工技术、质量验收规范要求 | D11: m3 | E11: 2135.60 | F11: 50.00 | G11: =F11*E11 -> 106780.00
A12: 6 | B12: 20cm厚砂垫层 | C12: 1.位置：片石换填区域顶部 2.材质：石粉砂 3.厚度：压实后完成厚度20cm 4.压实度要求：压实系数不小于0.95 5.做法：满足设计及现行施工技术、质量验收规范要求 | D12: m3 | E12: 441.23 | F12: 170.00 | G12: =F12*E12 -> 75009.10
A13: 7 | B13: 不透水性土工布 | C13: 1.材质要求：不透水性土工布 2.铺设位置：砂砾石层上方 3.搭接量、层间附加层、加强层计入本项目综合单价内,结算时不单独计算该部分工程量。 4.工程量计算规则：以现场实际收方为准 | D13: m2 | E13: 9032.68 | F13: 6.50 | G13: =F13*E13 -> 58712.42
A14: 三、混凝土挡土墙
A15: 8 | B15: 混凝土挡土墙（混凝土甲供） | C15: 1.混凝土强度等级：混凝土挡土墙（混凝土甲供） 2.模板单独计算 3.变形缝：单列 4.砼浇筑采用的机械种类及方式：承包人自行考虑，泵车、天泵费用由发包人承担，承包人负责混凝土运输道路及浇筑场地的修整，费用由承包人综合考虑在报价中； 5.分层浇筑所需措施费用由承包人自行考虑 6.做法：满足设计及现行施工技术、质量验收规范要求 | D15: m3 | E15: 3025.83 | F15: 35.00 | G15: =F15*E15 -> 105904.05 | J15: 砼甲供 损耗3%
A16: 9 | B16: 场内片石回填 | C16: 1.片石来源：承包人根据地勘及现场条件自行考虑 2.片石要求：①不要大面积片石,最好接近块状与圆形,最小尺寸与最大尺寸之比不能小于0.5；②强度不低于MU30 3.回填要求：利用片石换填,挖软基前设置临时排水沟,将软弱地基全部挖除后,待地基承载力达到150Kpa以上。开挖后要压实,再换填;如若软霸地基深度大于2.5米,根据现场情况进行抛石填淤处理:片石饱和抗压强度不能小于30Mpa，需分层碾压密实,最大分层厚度不能大于50cm。页岩、泥岩、易风化岩、遇水易容岩石不能用于换填；换填材料必须满足规范要求。 4.每层厚度不宜过厚(通常不超过50cm);片石饱和抗压强度不能小于30Mpa。 5.场内外二次及多次转运由承包人综合考虑 6.换填宽度:脚趾两侧不小于1m;换填深度H:需换填至持力层。 7.工程量以现场收方为准 8.压实度要求：压实系数不小于0.95 9.该费用在场内土石方挖运填基础上单独计取 10.做法：满足设计及现行施工技术、质量验收规范要求 | D16: m3 | E16: 659.20 | F16: 25.00 | G16: 16480.00
A17: 10 | B17: 沥青麻絮变形缝 | C17: 1.材质：沥青麻絮 2.缝宽：20~30mm 3.设置要求：挡墙每隔10~15m或地质变化较大处设置沉降缝,缝宽2~3cm,用沥青麻絮三面填塞,填塞深度不小于15cm设置变形缝产生的措施费由承包人综合考虑在投标报价中。 4.工程量计算规则：按挡土墙变形缝两侧及顶部长度计算，以现场实际收方为准 | D17: m | E17: 1466.50 | F17: 30.00 | G17: 43995.00
A18: 11 | B18: 粘土胶泥防渗层 | C18: 1.铺设位置：挡墙墙背碎石过滤层下 2.铺设坡比：1:10 3.做法：满足设计及现行施工技术、质量验收规范要求 | D18: m3 | E18: 81.00 | F18: 50.00 | G18: 4050.00
A19: 12 | B19: 碎石反滤层及墙背回填 | C19: 1.规格：碎石反滤层及墙背回填 2.坡比：靠墙一侧坡比1:0.5 3.墙背回填：墙体应达到设计强度75%以上,方可进行墙背回填。墙背填料应符合规范要求。墙背回填填料与挡墙顶之间的高差需≤1.2m,并应分层回填分层填筑夯实,可采用便捷式振动夯或平板夯,且压实度≥94%。 3.其他：满足设计及现行施工技术、质量验收规范要求 | D19: m3 | E19: 822.60 | F19: 200.00 | G19: 164520.00
A20: 13 | B20: 泄水管 φ50PVC管 | C20: 1.泄水孔规格、材质：PVC管 φ50PVC（含管件） 2.布置间距：泄水孔预埋φ50mmPVC管,挡土墙采用2*2m梅花形布置,水平间距2m、垂直距离2m布置。泄水孔间距2~3m,上下交错布置，孔内预埋φ5cmPVC管,PVC管应长出墙背10cm,其端部用渗水土工布包裹（土工布单列）,泄水孔出口应保证排水顺畅 3.位置：墙身在填土线以上的部分或常水位以上的部分应分层设置泄水孔，衡重台处应增设一排泄水孔。当地下水较丰富地段,泄水孔应适当加密 4.做法：满足设计及现行施工技术、质量验收规范要求 | D20: m | E20: 401.00 | F20: 22.00 | G20: 8822.00
A21: 14 | B21: 过滤土工布（150g/m²） | C21: 1.材料类别：过滤土工布（150g/m²）； 2.满足设计及规范要求； 3.搭接量、层间附加层、加强层计入本项目综合单价内,结算时不单独计算该部分工程量。 4.土工布包裹PVC管等降效费由承包人综合考虑在报价中 5.其他：未尽事宜满足设计及现行技术、质量验收规范要求 | D21: m2 | E21: 571.85 | F21: 5.50 | G21: 3145.18
A22: 15 | B22: 挡土墙模板（含脚手架） | C22: 1.支模高度：综合考虑，超高模板费用不再另计 2.模板类型：木模、组合钢模板、竹胶合板等综合； 3.对拉螺栓、表面处理、打样、成品保护费及加固模板费用由承包人承担 4.支架材料：钢管、竹、木支架综合，断面尺寸、材质、工艺等符合设计和施工验收规范要求； 5.包含承包人根据自身技术能力要求所采用的本工程垂直运输，以及其他全部总价措施费，脚手架由承包人综合考虑，承包人应根据施工经验，现场实际情况和企业自身情况综合报价，包含搭设脚手架需要的所有材料、人工、机械、辅助措施等，需满足监理、业主及相关规范要求，搭设前应编制专项方案并通过监理和业主审核认可后施工； 6.本项目承包人应根据施工经验,现场实际情况和企业自身情况综合报价,不论采用何种支模方式综合报价 | D22: m2 | E22: 4789.96 | F22: 80.00 | G22: 383196.80
A23: 四、管涵
A24: 16 | B24: 管涵附属设施混凝土浇筑（混凝土甲供） | C24: 1.类型：混凝土管形基础、帽石、边沟跌井、护坡边沟截水墙、护坡边沟、混凝土一字墙身、混凝土一字墙基础、混凝土铺砌截水墙、阶梯急流槽/铺砌等 2.混凝土强度等级：综合（混凝土甲供） 3.砼浇筑采用的机械种类及方式：承包人自行考虑，泵车、天泵费用由发包人承担，承包人负责混凝土运输道路及浇筑场地的修整，费用由承包人综合考虑在报价中； 4.截面尺寸：详见设计图纸； 5.模板单列 6.做法：满足设计及现行施工技术、质量验收规范要求 | D24: m3 | E24: 732.91 | F24: 35.00 | G24: =F24*E24 -> 25651.85 | J24: 砼甲供 损耗3%
A25: 17 | B25: C20混凝土铺砌（混凝土甲供） | C25: 1.混凝土强度等级：C20商品砼（混凝土甲供）（含模板） 2.砼浇筑采用的机械种类及方式：承包人自行确定，泵车、天泵费用由发包人承担，承包人负责混凝土运输道路及浇筑场地的修整，费用由承包人综合考虑在报价中； 3.模板安拆及固定方式由承包人自行考虑 4.做法：满足设计及现行施工技术、质量验收规范要求 | D25: m3 | E25: 11.71 | F25: 40.00 | G25: 468.40 | J25: 砼甲供 损耗3%
A26: 18 | B26: 场内片石回填 | C26: 1.片石来源：承包人根据地勘及现场条件自行考虑 2.强度要求：不低于MU30 3.回填要求：若达不到地基承载力要求,基底将进行换填深度不得小于1m。 4.场内外二次及多次转运由承包人综合考虑 5.工程量以现场收方为准 6.该费用在场内土石方挖运填基础上单独计取 7.做法：满足设计及现行施工技术、质量验收规范要求 | D26: m3 | E26: 297.31 | F26: 25.00 | G26: 7432.75
A27: 19 | B27: D500承插钢筋混凝土管 | C27: 1.规格：D500承插钢筋混凝土管 II级 2.场内外二次及多次转运由承包人综合考虑 3.安装及吊装方式：由承包人综合考虑 4.接口处固定镀锌网，表面抹水泥砂浆密封 5.洞身每隔4-6米设置一道沉降缝,缝内填以沥青麻絮 6.做法：满足设计及现行施工技术、质量验收规范要求 | D27: m | E27: 110.90 | F27: 250.00 | G27: 27725.00
A28: 20 | B28: D750/800承插钢筋混凝土管 | C28: 1.规格：D750/800承插钢筋混凝土管 II级 2.场内外二次及多次转运由承包人综合考虑 3.安装及吊装方式：由承包人综合考虑 4.接口处固定镀锌网，表面抹水泥砂浆密封 5.洞身每隔4-6米设置一道沉降缝,缝内填以沥青麻絮 6.做法：满足设计及现行施工技术、质量验收规范要求 | D28: m | E28: 185.50 | F28: 410.00 | G28: 76055.00
A29: 21 | B29: D1000承插钢筋混凝土管 | C29: 1.规格：D1000承插钢筋混凝土管 II级 2.场内外二次及多次转运由承包人综合考虑 3.安装及吊装方式：由承包人综合考虑 4.接口处固定镀锌网，表面抹水泥砂浆密封 5.洞身每隔4-6米设置一道沉降缝,缝内填以沥青麻絮 6.做法：满足设计及现行施工技术、质量验收规范要求 | D29: m | E29: 163.56 | F29: 570.00 | G29: 93229.20
A30: 22 | B30: 挡土墙模板（含脚手架） | C30: 1.支模高度：综合考虑，超高模板费用不再另计 2.模板类型：木模、组合钢模板、竹胶合板等综合； 3.对拉螺栓、表面处理、打样、成品保护费及加固模板费用由承包人承担 4.支架材料：钢管、竹、木支架综合，断面尺寸、材质、工艺等符合设计和施工验收规范要求； 5.包含承包人根据自身技术能力要求所采用的本工程垂直运输，以及其他全部总价措施费，脚手架由承包人综合考虑，承包人应根据施工经验，现场实际情况和企业自身情况综合报价，包含搭设脚手架需要的所有材料、人工、机械、辅助措施等，需满足监理、业主及相关规范要求，搭设前应编制专项方案并通过监理和业主审核认可后施工； 6.本项目承包人应根据施工经验,现场实际情况和企业自身情况综合报价,不论采用何种支模方式综合报价 | D30: m2 | E30: 1276.58 | F30: 80.00 | G30: 102126.40
A31: 五、箱涵
A32: 23 | B32: 现浇构件钢筋制安型号综合（钢筋甲供） | C32: 1.钢筋种类、规格：钢筋规格综合考虑；（钢筋甲供） 2.钢筋连接方式：各种连接方式、套筒连接等承包人综合考虑在报价中 3.支撑钢筋等措施钢筋综合考虑 4.弧形构件钢筋增加的费用，由承包人综合考虑，进入综合单价中 5.加工场地由承包人踏勘现场后执行确定，加工区场地平整，硬化、围挡等费用，加工棚搭设、钢筋加工所需机具设备等由承包人负责，钢筋的二次、多次转运费用已包含在综合单价中。 6.发包人不提供水电接入口，需承包人自备发电机进行加工及施工，该费用由承包人综合考虑在投标报价中 7.做法：满足设计及现行施工技术、质量验收规范要 | D32: t | E32: 67.84 | F32: 2200.00 | G32: =F32*E32 -> 149241.40 | J32: 钢筋甲供 损耗7%
A33: 24 | B33: 混凝土箱体浇筑（混凝土甲供） | C33: 1.混凝土强度等级：C35混凝土箱体（混凝土甲供） 2.模板单独计算 3.变形缝：洞身每隔4-6米设置一道沉降缝,缝内填以沥青麻絮 4.砼浇筑采用的机械种类及方式：承包人自行考虑，泵车、天泵费用由发包人承担，承包人负责混凝土运输道路及浇筑场地的修整，费用由承包人综合考虑在报价中； 5.分层浇筑所需措施费用由承包人自行考虑 6.做法：满足设计及现行施工技术、质量验收规范要求 | D33: m3 | E33: 409.10 | F33: 35.00 | G33: 14318.50 | J33: 砼甲供 损耗3%
A34: 25 | B34: 箱涵附属设施混凝土浇筑（混凝土甲供） | C34: 1.类型：帽石、箱涵基础、锥坡截水墙、翼墙墙身等 2.混凝土强度等级：综合（混凝土甲供） 3.砼浇筑采用的机械种类及方式：承包人自行考虑，泵车、天泵费用由发包人承担，承包人负责混凝土运输道路及浇筑场地的修整，费用由承包人综合考虑在报价中； 4.截面尺寸：详见设计图纸； 5.模板单独计算 6.做法：满足设计及现行施工技术、质量验收规范要求 | D34: m3 | E34: 335.30 | F34: 35.00 | G34: 11735.50 | J34: 砼甲供 损耗3%
A35: 26 | B35: C20混凝土锥坡基础/铺砌（混凝土甲供） | C35: 1.混凝土强度等级：C20商品砼（混凝土甲供）（含模板） 2.砼浇筑采用的机械种类及方式：承包人自行确定，泵车、天泵费用由发包人承担，承包人负责混凝土运输道路及浇筑场地的修整，费用由承包人综合考虑在报价中； 3.模板安拆及固定方式由承包人自行考虑 4.做法：满足设计及现行施工技术、质量验收规范要求 | D35: m3 | E35: 63.50 | F35: 40.00 | G35: 2540.00 | J35: 砼甲供 损耗3%
A36: 27 | B36: 砂砾石箱涵垫层 | C36: 1.位置：箱涵基础垫层 2.材质：砂砾石 3.厚度：压实后完成厚度30cm，详见设计 4.计算规则：以图示尺寸按立方计算 5.做法：满足设计及现行施工技术、质量验收规范要求 | D36: m3 | E36: 151.90 | F36: 160.00 | G36: 24304.00
A37: 28 | B37: 箱涵基础外购片石回填 | C37: 1.片石来源：场外外购 2.强度要求：不低于MU30 3.片石饱和抗压强度不能小于30Mpa 4.场内外二次及多次转运由承包人综合考虑 5.工程量以现场收方为准 6.压实度要求：压实系数不小于0.95 7.做法：满足设计及现行施工技术、质量验收规范要求 | D37: m3 | E37: 1623.00 | F37: 145.00 | G37: 235335.00
A38: 29 | B38: M10浆砌MU40片石护坡 | C38: 1.部位：箱涵护坡 2.材料品种、规格：MU40片石 3.砂浆强度等级：湿拌砌筑砂浆 M10 4.其它：未尽事宜满足设计及现行技术、质量验收规范要求 | D38: m3 | E38: 121.70 | F38: 390.00 | G38: 47463.00
A39: 30 | B39: 混凝土模板（含外架及满堂脚手架） | C39: 1.支模高度：综合考虑，超高模板费用不再另计 2.模板类型：木模、组合钢模板、竹胶合板等综合； 3.对拉螺栓、表面处理、打样、成品保护费及加固模板费用由承包人承担 4.支架材料：钢管、竹、木支架综合，断面尺寸、材质、工艺等符合设计和施工验收规范要求； 5.包含承包人根据自身技术能力要求所采用的本工程垂直运输，以及其他全部总价措施费，脚手架由承包人综合考虑，承包人应根据施工经验，现场实际情况和企业自身情况综合报价，包含搭设脚手架需要的所有材料、人工、机械、辅助措施等，需满足监理、业主及相关规范要求，搭设前应编制专项方案并通过监理和业主审核认可后施工； 6.本项目承包人应根据施工经验,现场实际情况和企业自身情况综合报价,不论采用何种支模方式综合报价 | D39: m2 | E39: 4593.51 | F39: 80.00 | G39: 367480.80
A40: 六、其他
A41: 31 | B41: C25混凝土道路面层浇筑（混凝土甲供） | C41: 1.混凝土等级：综合考虑（混凝土甲供） 2.混凝土道路面层浇筑包含新建道路面层及局部修补道路面层(局部修补降效费用综合考虑在投标报价中) 3.面层处理：面层抹平、拉毛、切缝等满足规范要求 4.砼浇筑采用的机械种类及方式：承包人自行考虑，泵车、天泵费用由发包人承担，承包人负责混凝土运输道路及浇筑场地的修整，费用由承包人综合考虑在报价中； 5.道路模板安拆及固定方式由承包人自行考虑 6.做法：满足设计及现行施工技术、质量验收规范要求 | D41: m3 | E41: 50.00 | F41: 35.00 | G41: =F41*E41 -> 1750.00 | J41: 砼甲供 损耗3%
A42: 32 | B42: 拆除混凝土道路及外弃 | C42: 1.拆除厚度及方式：由与承包人综合考虑 2.运输方式、运距、弃土场地及费用:发包人不指定弃土场，由承包人自行踏勘现场、自主选定合规弃土场、确定运输路线与运距；弃土外运的运输、装卸、弃土场租赁 / 征用、合规手续办理、环保防护、水土保持等全部相关费用，均已包含在弃土外运项目综合单价中，发包人不另行计量与支付。承包人须确保弃土作业全程合规，若因弃土行为产生任何行政处罚、第三方索赔及相关风险责任，均由承包人全额承担，合同价款不作任何调整 3.切缝：切缝深度满足拆除混凝土道路要求，费用综合考虑在投标报价中 4.工程量计算规则：以现场实际收方为准 5.做法：满足设计及现行施工技术、质量验收规范要求 | D42: m3 | E42: 100.00 | F42: 70.00 | G42: =F42*E42 -> 7000.00
A43: 33 | B43: 租赁成品钢板洗车池 | C43: 1.名称：租赁成品钢板洗车池 2.该项现场产生时计取，包干使用 3.使用时间段：开工至竣工 4.成品钢板洗车池需满足现场使用需求 5.装运及安装、拆除、运输等费用由承包人综合考虑 6.数量：两个成品钢板洗车池 | D43: 项 | E43: 1.00 | F43: 20000.00 | G43: =F43*E43 -> 20000.00
A44: 34 | B44: 编织袋围堰护坡 | C44: 1.护坡类型：编织袋围堰护坡（编织袋装土护坡） 3.高度：满足设计规范及施工现场要求 4.填心材料：满足设计规范及施工现场要求 5.其它：未尽事宜满足设计及现行技术、质量验收规范要求 | D44: m3 | E44: 360.00 | F44: 100.00 | G44: =F44*E44 -> 36000.00
A45: 合计 | G45: =SUM(G5:G44) -> 6234596.45 | I45: =SUM(I5:I44) -> 0.00
A46: 注： 1、全费用综合单价，包括人工费、材料费、机械费、管理费、利润、措施费、大型机械进出场费、降排水费、规费、销项增值税和附加税、弃土费，满足环保、城管、政策要求所需的施工措施费及赶工等费用；以上工程量均为暂估量，土石方工程以测绘报告及现场收方单为准，不因结算工程量与合同工程量不一致而调整综合单价。 2.现场安全环保文明施工管理要求：（1）由公司统一发放印有“兴绿园林”字样和LOGO的安全帽和反光背心，班组按实名制领取，使用完后交回项目部，否则按采购费用扣款，其余参照合同附件中安全环保管理协议执行。（2）现场雾炮机由甲方提供，投标单位需安排人员管理使用，人工费、油费、维修费及管理费用综合考虑到投标报价中，不单独计取。 （3）防尘网由甲方提供，投标单位安排人员进行覆盖、回收、现场转移等，人工费综合考虑到投标报价中，不单独计取。（5）现场机械均实行一机一炮，每台挖掘机械均应配备随机雾炮机，工作时需保持雾炮机正常工作，加水、加油、维护等费用综合考虑在报价中。（6）机械配置需满足进度要求（7）我司不提供水电接驳口及临时冲洗设施，由承包人自行考虑； 3.承包人应在报价前自行完成现场踏勘，充分掌握现场实际情况 4.场外运输相关全部手续，由承包人自行负责办理。 5.为保护已有道路采取的防护措施的全部费用，由承包人综合计入投标报价。 6.场内二次及多次转运产生的全部费用，由承包人综合计入投标报价。
